Cogmind - Beta 12 @@@ ROGUE MODE // 2023.11.11 @ 12:58:20 Player: s0lid Result: Destroyed by D-53 Grenadier with Mini Grenade Launcher Performance ------------- Evolutions (1) 500 Regions Visited (3) 600 Robots Destroyed (19) 95 Value Destroyed (380) 380 Prototype IDs (0) 0 Alien Tech Used (0) 0 Bonus (0) 0 TOTAL SCORE: 1575 Bonus ------- None Cogmind --------- Core Integrity 0/400 Matter 300/300 Energy 99/100 System Corruption 0% Temperature Cool (0) Movement Core (50) Location -9/Mines Parts ------- > --- POWER (1) -------- (None) > --- PROPULSION (2) --- (None) > --- UTILITY (4) ------ (None) > --- WEAPON (2) ------- (None) > --- INVENTORY (5) ---- Ion Engine EM Pulse Gun Small Laser Small Laser Welding Torch Peak State ------------ > --- POWER ------------ Ion Engine > --- PROPULSION ------- Aluminum Leg Aluminum Leg > --- UTILITY ---------- Medium Storage Unit Visual Processing Unit Improved Terrain Scanner Terrain Scan Processor > --- WEAPON ----------- Small Laser Light Assault Rifle > --- INVENTORY -------- Ion Engine Wheel Compact Wheel High-capacity Storage Unit EM Pulse Gun Small Laser Small Laser Welding Torch [Rating: 13] Favorites ----------- Power Light Ion Engine Engine Light Ion Engine Propulsion Aluminum Leg Leg Aluminum Leg Wheel Wheel Utility Seismic Detector Device Seismic Detector Storage Medium Storage Unit Processor Visual Processing Unit Weapon Medium Laser Energy Gun Medium Laser Ballistic Gun Light Assault Rifle Build | -11 -10 -9 -9 ------- Run | Jun Mat Mat Min Slots Evolved 2 | . . 2 . Power . | . . . . Propulsion . | . . . . Utility 2 | . . 2 . Weapon . | . . . . Parts Attached 26 | 7 15 . 4 Power 2 | 1 1 . . Engine 2 | 1 1 . . Core . | . . . . Reactor . | . . . . Propulsion 11 | 2 7 . 2 Treads . | . . . . Leg 4 | . 4 . . Wheel 7 | 2 3 . 2 Hover . | . . . . Flight . | . . . . Utility 7 | 2 3 . 2 Device 2 | 1 . . 1 Storage 3 | 1 2 . . Processor 2 | . 1 . 1 Hackware . | . . . . Protection . | . . . . Artifact . | . . . . Weapon 6 | 2 4 . . Energy Gun 5 | 2 3 . . Energy Cannon . | . . . . Ballistic Gun 1 | . 1 . . Ballistic Cannon . | . . . . Launcher . | . . . . Special Weapon . | . . . . Impact Weapon . | . . . . Slashing Weapon . | . . . . Piercing Weapon . | . . . . Special Melee Weapon . | . . . . Unidentified Prototypes . | . . . . Parts Lost 11 | . 4 . 7 Power 1 | . . . 1 Propulsion 4 | . 1 . 3 Utility 2 | . 1 . 1 Weapon 4 | . 2 . 2 Highest Loss Streak 7 | . 3 . 7 To Critical Strikes . | . . . . Average Slot Usage (%) 93 | . 99 77 80 Engine 13 | . 14 11 9 Leg 12 | . 8 22 17 Wheel 13 | . 19 . . Device 8 | . 11 . 7 Storage 13 | . 14 11 9 Processor 4 | . 1 11 17 Energy Gun 21 | . 25 11 9 Ballistic Gun 4 | . 2 11 9 Naked Turns 10 | . . . 10 Heaviest Build 49 | 13 49 17 18 Greatest Support 26 | 26 26 20 20 Greatest Overweight (x) 2 | . 2 . 1 Average Overweight (x) . | . . . . Largest Inventory Capacity 20 | 8 20 10 10 Average Capacity 11 | 7 13 10 9 Most Carried 14 | 8 14 10 10 Average Carried 8 | 3 8 8 7 Final Capacity 10 | 8 10 10 5 Final Carried 10 | 8 8 10 5 Class Distribution -------------------- 95% | Mutant 4% | Skirmisher Dominant Class ---------------- Mutant | -10/Materials Mutant | -9/Materials Skirmisher | -9/Mines Resources | -11 -10 -9 -9 ----------- Run | Jun Mat Mat Min Matter Collected 431 | 199 210 7 15 Remotely . | . . . . Salvage Created 522 | 84 390 48 . Parts 31 | 7 23 1 . Haulers Intercepted . | . . . . Recyclers Shooed . | . . . . Parts Field Recycled . | . . . . Retrieved Matter . | . . . . Parts Self-Destructed . | . . . . Prevented . | . . . . Kills | -11 -10 -9 -9 ------- Run | Jun Mat Mat Min Combat Hostiles Destroyed 13 | . 12 1 . Guns 13 | . 12 1 . Classes Destroyed 5 | 1 4 . . Tunneler 3 | 3 . . . Operator 1 | . 1 . . Watcher 2 | . 2 . . Swarmer 6 | . 6 . . Grunt 7 | . 6 1 . Best Kill Streak 3 | 3 3 1 . Combat Bots Only 3 | . 3 1 . Max Kills in Single Turn 2 | 1 2 1 . Gunslinging 1 | . 1 . . Exploded . | . . . . Melee . | . . . . Uniques/NPCs Destroyed . | . . . . Combat | -11 -10 -9 -9 -------- Run | Jun Mat Mat Min Damage Taken 1314 | . 495 170 649 Core 500 | . 90 60 350 Absorbed by Shields . | . . . . Core Remaining (%) 82 | 100 64 . . Volleys Fired 54 | 4 43 7 . Largest 2 | 2 2 2 . Hottest 100 | 100 100 60 . Shots Fired 106 | 8 84 14 . Gun 106 | 8 84 14 . Cannon . | . . . . Launcher . | . . . . Special . | . . . . Kinetic 11 | . 4 7 . Thermal 95 | 8 80 7 . Explosive . | . . . . Electromagnetic . | . . . . Robot Hit Streak 10 | 3 10 8 . Robot Miss Streak 3 | 1 3 3 . Penetration Max . | . . . . Secondary Targets 2 | . 2 . . Max Gunslinging Chain 1 | . 1 . . Shots Hit Robots 70 | 6 55 9 . Core Hits 29 | 3 23 3 . Critical Kills . | . . . . Critical Parts Destroyed . | . . . . Critical Strikes 1 | . 1 . . Burn 1 | . 1 . . Melee Attacks . | . . . . Impact . | . . . . Slashing . | . . . . Piercing . | . . . . Sneak Attacks . | . . . . Combat Hostiles . | . . . . Follow-up Attacks . | . . . . Damage Inflicted 846 | 73 690 83 . Guns 846 | 73 690 83 . Cannons . | . . . . Explosions . | . . . . Melee . | . . . . Ramming . | . . . . Kinetic 43 | . 14 29 . Thermal 803 | 73 676 54 . Explosive . | . . . . Electromagnetic . | . . . . Impact . | . . . . Slashing . | . . . . Piercing . | . . . . Highest Corruption . | . . . . Average Corruption . | . . . . Corruption Purged . | . . . . Corruption Blocked . | . . . . Overload Shots . | . . . . Overflow Damage . | . . . . Projectiles . | . . . . Explosions . | . . . . Melee . | . . . . Knockbacks . | . . . . Impact . | . . . . Kinetic . | . . . . Secondary . | . . . . Self-Inflicted Damage . | . . . . Shots . | . . . . Rammed . | . . . . Targets Rammed . | . . . . Kicked . | . . . . Crushed . | . . . . Highest Temperature 413 | 78 413 34 . Average Temperature 109 | 34 124 14 . Received Heat Transfer 288 | . 204 84 . Effects 2 | . 2 . . Shutdowns 1 | . 1 . . Damage (minor) 1 | . 1 . . Siege Activations . | . . . . Robots Corrupted . | . . . . Combat Hostiles . | . . . . Parts Fried . | . . . . Impact Corruptions . | . . . . Robots Melted . | . . . . Combat Hostiles . | . . . . Parts Melted 9 | . 9 . . Heat Transferred 2300 | 222 1953 125 . Parts Sabotaged . | . . . . Parts Stolen . | . . . . Parts Stripped . | . . . . Power Chain Reactions . | . . . . Missiles Intercepted . | . . . . Alert | -11 -10 -9 -9 ------- Run | Jun Mat Mat Min Peak Influence 339 | 15 339 97 52 Initial 37 | . 9 27 37 Average 115 | 3 152 60 32 Maximum Alert Level 1 | . 1 . . Low Security (%) 84 | 100 77 100 100 Level 1 15 | . 22 . . Level 2 . | . . . . Level 3 . | . . . . Level 4 . | . . . . Level 5 . | . . . . High Security . | . . . . Max Security . | . . . . Squads Dispatched 3 | . 2 1 . Investigation 1 | . 1 . . Extermination . | . . . . Reinforcement 2 | . 1 1 . Assault . | . . . . Garrison . | . . . . Intercept . | . . . . Searches Triggered . | . . . . Construction Impeded . | . . . . Haulers Reinforced . | . . . . Active Scanning Responses . | . . . . Cargo Convoy Interrupts . | . . . . Stealth | -11 -10 -9 -9 --------- Run | Jun Mat Mat Min Distress Signals 4 | . 1 3 . Communications Jammed . | . . . . Distress Signals . | . . . . Times Spotted 33 | . 20 10 3 Peak Tracking Total 6 | . 4 6 3 Tactical Retreats 2 | . 2 . . Traps | -11 -10 -9 -9 ------- Run | Jun Mat Mat Min Traps Triggered 1 | . 1 . . Indirectly . | . . . . Trap Hack Attempts . | . . . . Triggered . | . . . . Disarmed . | . . . . Reprogrammed . | . . . . Reused . | . . . . Traps Extracted . | . . . . Installed . | . . . . Triggered . | . . . . Machines | -11 -10 -9 -9 ---------- Run | Jun Mat Mat Min Machines Disabled . | . . . . Max in Single Turn . | . . . . Machines Repaired . | . . . . Machines Sabotaged . | . . . . Overloaded Fab Kills . | . . . . Hacking | -11 -10 -9 -9 --------- Run | Jun Mat Mat Min Machines Accessed 7 | . 5 2 . Terminals 7 | . 5 2 . Fabricators . | . . . . Repair Stations . | . . . . Recycling Units . | . . . . Scanalyzers . | . . . . Garrison Access . | . . . . Total Hacks 14 | . 11 3 . Successful 9 | . 8 1 . Failed 5 | . 3 2 . Catastrophic 2 | . 1 1 . Database Lockouts . | . . . . Manual 7 | . 7 . . Terminals 14 | . 11 3 . Fabricators . | . . . . Repair Stations . | . . . . Recycling Units . | . . . . Scanalyzers . | . . . . Garrison Access . | . . . . Terminal Hacks 4 | . 3 1 . Unreport Threat 1 | . 1 . . Locate Traps 2 | . 2 . . Zone Layout 1 | . . 1 . Fabricator Hacks . | . . . . Repair Station Hacks . | . . . . Recycling Unit Hacks . | . . . . Scanalyzer . | . . . . Garrison Access Hacks . | . . . . Unauthorized Hacks 5 | . 5 . . Terminals 5 | . 5 . . Assimilate 1 | . 1 . . Botnet 4 | . 4 . . Fabricators . | . . . . Repair Stations . | . . . . Recycling Units . | . . . . Scanalyzers . | . . . . Garrison Access . | . . . . Data Cores Recovered . | . . . . Used . | . . . . Hacking Detections 4 | . 3 1 . Full Trace Events . | . . . . Feedback Events . | . . . . Feedback Blocked . | . . . . Robot Schematics Acquired . | . . . . Robots Built . | . . . . Authchips . | . . . . Time . | . . . . Total Robot Build Rating . | . . . . Part Schematics Acquired . | . . . . Parts Built . | . . . . Authchips . | . . . . Time . | . . . . Total Part Build Rating . | . . . . Parts Repaired . | . . . . Time . | . . . . Parts Recycled . | . . . . Recycled Matter . | . . . . Retrieved Matter . | . . . . Retrieved Components . | . . . . Parts Scanalyzed . | . . . . Part Schematics Acquired . | . . . . Parts Damaged . | . . . . Bothacking | -11 -10 -9 -9 ------------ Run | Jun Mat Mat Min Used RIF Installer . | . . . . Robots Hacked . | . . . . Non-combat . | . . . . Combat . | . . . . Robot Hacks Applied . | . . . . Relay Couplers Released . | . . . . Fabnet Peak Effective % . | . . . . Robots Rewired . | . . . . Allies Hacked . | . . . . Hacks Repelled . | . . . . Allies | -11 -10 -9 -9 -------- Run | Jun Mat Mat Min Total Allies . | . . . . Largest Group . | . . . . Highest-Rated Group . | . . . . Highest-Rated Ally . | . . . . Total Orders . | . . . . Ally Attacks . | . . . . Total Damage . | . . . . Kills . | . . . . Allies Corrupted . | . . . . Allies Melted . | . . . . Intel | -11 -10 -9 -9 ------- Run | Jun Mat Mat Min Robot Analysis Total . | . . . . Derelict Logs Recovered . | . . . . Drone Launches . | . . . . Drone Recoveries . | . . . . Exploration | -11 -10 -9 -9 ------------- Run | Jun Mat Mat Min Turns Passed 1007 | 66 669 194 78 Spaces Moved 694 | 40 459 134 61 Core 22 | 1 . . 21 Treads . | . . . . Legs 289 | . 118 134 37 Wheels 383 | 39 341 . 3 Hover . | . . . . Flight . | . . . . Fastest Speed 50 | 50 80 120 50 Average Speed 104 | 90 102 120 96 Slowest Speed 260 | 100 260 120 190 Overloaded Moves . | . . . . Propulsion Burnouts . | . . . . Robots Hopped . | . . . . Cave-ins Triggered . | . . . . Exploration Rate (%) 27 | 3 61 17 29 Regions Visited 3 Branch Regions 1 Pre-discovered Areas . | . . . . Known Exits Taken . | . . . . Unknown Exits Taken 3 | 1 1 1 . Scrap Searched . | . . . . Spaces Dug . | . . . . Terrain Destroyed . | . . . . Melee . | . . . . Projectile . | . . . . AOE . | . . . . Terrain Rammed . | . . . . Walls Destroyed . | . . . . Machines Disabled . | . . . . Actions | -11 -10 -9 -9 --------- Run | Jun Mat Mat Min Total 867 | 58 575 154 80 Wait 67 | . 40 12 15 Move 691 | 39 458 133 61 Hop . | . . . . Pick Up 22 | 8 12 2 . Fast Attach 7 | 7 . . . Attach 8 | . 4 . 4 Detach . | . . . . Swap 11 | . 11 . . Drop 7 | . 7 . . Fire 54 | 4 43 7 . Melee . | . . . . Ram . | . . . . Kick . | . . . . Crush . | . . . . Escape Stasis . | . . . . Rewire . | . . . . Trap . | . . . . Miscellaneous . | . . . . Route ------- -11/Junkyard -10/Materials (discovered 2 exits: *Mat / [*Min]) -9/Materials -9/Mines History --------- Turn | Location | Event 28 | -11/Junkyard | Discovered new exit (range 16) 67 | -11/Junkyard | Entered Materials 276 | -10/Materials | Discovered new exit (range 16) 311 | -10/Materials | Build established: Mutant 584 | -10/Materials | Discovered new exit (range 10) 666 | -10/Materials | Lost 3 parts (1u2w) 736 | -10/Materials | Entered another Materials area 736 | -9/Materials | Evolved 2 slots: Utility x2 909 | -9/Materials | Discovered new exit (range 17) 930 | -9/Materials | Entered Mines 943 | -9/Mines | Assembled infested the area 995 | -9/Mines | Core integrity fell below 50% 998 | -9/Mines | Core integrity fell below 20% 998 | -9/Mines | Released all parts (4) 1008 | -9/Mines | Destroyed by D-53 Grenadier with Mini Grenade Launcher Last Messages --------------- 00990_ U-05 Engineer destroyed. 00990_ U-05 Engineer lays Concrete. 00991_ Ion Engine destroyed. 00991_ U-05 Engineer lays Concrete. 00992_ The unstable cave ceiling collapses. 00992_ Aluminum Leg destroyed. 00992_ U-05 Engineer lays Concrete. 00993_ The unstable cave ceiling collapses. 00993_ Imp. Terrain Scanner destroyed. 00993_ Lgt. Assault Rifle destroyed. 00993_ U-05 Engineer destroyed. 00996_ The unstable cave ceiling collapses. 00996_ Wheel destroyed. 00997_ The unstable cave ceiling collapses. 00998_ Released Com. Wheel. 00998_ Released Terrain Scan Processor. 00998_ Released Med. Storage Unit. 00998_ Released Visual Processing Unit. 00998_ Acquired 15 matter. 00999_ The unstable cave ceiling collapses. Map ----- +----------------------------------------------------+ | | | | | | | | | | | | | | | | | | | | | | | | | | | | | | | | | | | ?????????????????????????????????????????????????? | | ??????????????????###????????????????????????????? | | ??????????????????# ####????????????????????????? | | ??????????????????# ##???????###?????????????? | | ??????????????????# ##????## ##????????????? | | ??????????????????### ##??# ##???????????? | | ????????????????????### ### #???????????? | | ??????????????????????## #???????????? | | ???????????????????????##@ #????????????? | | ????????????????????????# ##????????????? | | ???????????????????????## ##????????????? | | ????????????????????#### ##???????????? | | ????????????????????# ####????????? | | ????????????????????## ## ####?????? | | ?????????????????????### ### #?# ????? | | ???????????????????????# ?## ### ????? | | ???????????????????????# ## d ?#??? | | ???????????????????????# d ##### ??????? | | ?????????????????#?????# # % ##?#? ? #???? | | ??????????????????????## # ###??##???????? | | ???????????????????????# !=! ##???##??????? | | ???????????????????????# # ##???#???? ? | | ?????????????????????? # ####???? ? | | ??????????????????#??##### ###??#? ???? | | ?????????????????????????# #?#????? ?? | | ??????????????????? ?????## ####????? | | ??????????????????????##### % ###?? ?? | | ?????????????????? | # #????# | | ?????????????????? * ##?#?? | | ??????????????????# ##### ####?? | | ??????????????????##??????# #?? | | ?????????????????????????# # ### ## #?# | | ?????????????????????????# #####?# ## #?? | +----------------------------------------------------+ Best States ------------- Heat Dissipation 28 Energy Generation 10 Energy Capacity 250 Matter Stores 300 Matter Capacity 300 Sight Range 18 Terrain Scan Range 16 Terrain Scan Density 85 Evasion (%) 55 Item Schematics ----------------- None Robot Schematics ------------------ None Fabricated ------------ Nothing Alien Tech Used ----------------- None Achievements -------------- None Challenges ------------ None Game ------ Seed OpticalIntegratedDoublenader Manual? 0 Play Time 00:16:30 Cumulative 134.6 hours Start 2023.11.11 @ 12:40:47 End 2023.11.11 @ 12:58:20 Sessions 1 Manual Loads 0 Difficulty Rogue Special Mode None Game No. 135 Rogue 135 Adventurer 0 Explorer 0 Win Type - Total 0 Types 0/0/0/0/0/0/0/0/0 Lore% 28 Gallery% 55 Achievement% 35 Wizard Run 0 Options --------- ASCII 0 Keyboard 1 Movement Vi Keybinds 0 Fullscreen 2 Font 24/Smallcaps Map View 76x50 Tactical HUD 1 Map Filters NONE Filters NONE Steam 1 RUN: aa470bbc-a81a-47d0-8013-c20f1a1c63df